fUST/lending_fUST_20260410
["ID","MTS","AMOUNT","RATE_DAILY","PERIOD"]
[420177147,1775750402128,210.07,9e-05,2]
[420177958,1775751002369,152.18,9e-05,2]
[420177959,1775751002653,152.18,9e-05,2]
[420177960,1775751002939,152.18,9e-05,2]
[420177977,1775751017280,191.590741,6.604e-05,2]
[420178022,1775751032309,-152.18,9.1e-05,2]
[420178024,1775751032320,-152.18,9.1e-05,2]
[420178026,1775751032330,-152.18,9.1e-05,2]
[420178028,1775751032340,-152.18,9.1e-05,2]
[420178030,1775751032349,-152.18,9.2e-05,2]
[420178032,1775751032361,-152.18,9.2e-05,2]
[420178034,1775751032371,-152.18,9.2e-05,2]
[420178036,1775751032382,-152.18,9.2e-05,2]
[420178038,1775751032394,-152.18,9.2e-05,2]
[420178040,1775751032405,-152.18,9.3e-05,2]
[420178043,1775751032416,-152.18,9.3e-05,2]
[420178046,1775751032426,-152.18,9.3e-05,2]
[420178048,1775751032437,-152.18,9.3e-05,2]
[420178050,1775751032448,-152.18,9.4e-05,2]
[420178052,1775751032460,-152.18,9.4e-05,2]
[420178054,1775751032471,-152.18,9.4e-05,2]
[420178056,1775751032482,-152.18,9.4e-05,2]
[420178058,1775751032493,-152.18,9.4e-05,2]
[420178060,1775751032503,-152.18,9.5e-05,2]
[420178061,1775751032513,-152.18,9.5e-05,2]
[420178062,1775751032524,-152.18,9.5e-05,2]
[420178063,1775751032535,-152.18,9.5e-05,2]
[420178064,1775751032545,-152.18,9.6e-05,2]
[420178065,1775751032557,-152.18,9.6e-05,2]
[420178066,1775751032568,-152.18,9.6e-05,2]
[420178067,1775751032578,-152.18,9.6e-05,2]
[420178068,1775751032589,-152.18,9.7e-05,2]
[420178069,1775751032600,-152.18,9.7e-05,2]
[420178070,1775751032613,-152.18,9.7e-05,2]
[420178071,1775751032623,-152.18,9.7e-05,2]
[420178072,1775751032635,-152.18,9.7e-05,2]
[420178073,1775751032646,-152.18,9.8e-05,2]
[420178074,1775751032658,-152.18,9.8e-05,2]
[420178075,1775751032669,-152.18,9.8e-05,2]
[420178076,1775751032678,-152.18,9.8e-05,2]
[420178077,1775751032689,-210.07,9.9e-05,2]
[420178078,1775751032699,-152.18,9.9e-05,2]
[420178079,1775751032709,-152.18,9.9e-05,2]
[420178080,1775751032719,-152.18,9.9e-05,2]
[420178081,1775751032729,-312.01495126,9.95e-05,2]
[420178082,1775751032740,-3341.36825419,0.0001,10]
[420178083,1775751032750,-368.17764249,0.0001195,2]
[420178084,1775751032760,-1000.0,0.00013699,2]
[420178085,1775751032770,-424.34033372,0.0001395,2]
[420178086,1775751032779,-715.18725917,0.00014175,2]
[420178087,1775751032789,-600.56055392,0.000149,2]
[420178088,1775751032800,-1028.53622187,0.00015,2]
[420178089,1775751032810,-3055.849822,0.00015,2]
[420178090,1775751032819,-152.3569951,0.00015,2]
[420178091,1775751032830,-1365.57297757,0.00015024,2]
[420178093,1775751032840,-854.39241986,0.000158,2]
[420178094,1775751032850,-2015.95869597,0.00015873,2]
[420178095,1775751032861,-480.50302495,0.0001595,2]
[420178096,1775751032871,-217.98739231,0.00016,2]
[420178098,1775751032881,-300.0,0.00016438,2]
[420178100,1775751032892,-2353.18049354,0.00016722,2]
[420178102,1775751032903,-1540.05681832,0.00017571,2]
[420178108,1775751032957,-1126.28759605,0.00017571,2]
[420178110,1775751032968,-2159.78423246,0.000176,2]
[420178112,1775751032979,-536.66571618,0.0001795,2]
[420178114,1775751032990,-330.0,0.00017964,2]
[420178117,1775751033006,-509.35117642,0.00018,2]
[420178119,1775751033019,-322.68636657,0.0001842,2]
[420178347,1775751038612,-355.71999507,0.0001842,2]
[420178348,1775751038760,-2097.95460909,0.0001842,2]
[420178349,1775751038770,-1406.0,0.00018573,2]
[420178350,1775751038781,-644.0,0.00018573,2]
[420178351,1775751038791,-2227.614,0.00018573,2]
[420178353,1775751038801,-184.0,0.00018573,2]
[420178354,1775751038811,-200.0,0.00019013,2]
[420178355,1775751038821,-3199.54144808,0.00019269,2]
[420178356,1775751038831,-592.8284074,0.0001995,2]
[420178357,1775751038843,-869.94,0.0002,2]
[420178358,1775751038853,-153.78,0.0002,2]
[420178359,1775751038863,-250.0,0.00020547,2]
[420178360,1775751038872,-1957.856,0.00020587,2]
[420178361,1775751038882,-569.98638677,0.00020587,2]
[420178362,1775751038892,-272.29255414,0.00020587,2]
[420178363,1775751038902,-2150.738,0.00020587,2]
[420178364,1775751038911,-2030.296672,0.00020642,2]
[420178365,1775751038922,-2105.41764886,0.00020697,2]
[420178366,1775751038932,-2183.31810187,0.00020752,2]
[420178367,1775751038941,-7995.0,0.00020771,7]
[420178368,1775751038951,-1316.0,0.00020771,7]
[420178369,1775751038961,-1153.90074685,0.00020807,2]
[420178370,1775751038972,-197.29630614,0.00020822,2]
[420178371,1775751038982,-481.0,0.00020822,2]
[420178372,1775751038992,-481.0,0.00020822,2]
[420178373,1775751039002,-500.0,0.00020822,2]
[420178374,1775751039012,-1442.0,0.00020822,2]
[420178375,1775751039022,-481.0,0.00020822,2]
[420178376,1775751039032,-500.0,0.00020822,2]
[420178377,1775751039042,-1442.0,0.00020822,2]
[420178378,1775751039053,-481.0,0.00020822,2]
[420178379,1775751039063,-500.0,0.00020822,2]
[420178380,1775751039073,-1442.0,0.00020822,2]
[420178381,1775751039084,-481.0,0.00020822,2]
[420178382,1775751039097,-500.0,0.00020822,2]
[420178383,1775751039106,-481.0,0.00020822,2]
[420178384,1775751039116,-500.0,0.00020822,2]
[420178385,1775751039126,-481.0,0.00020822,2]
[420178386,1775751039136,-467.75968667,0.00020822,2]
[420178387,1775751039146,-481.0,0.00020822,2]
[420178388,1775751039155,-481.0,0.00020822,2]
[420178389,1775751039165,-481.0,0.00020822,2]
[420178390,1775751039175,-481.0,0.00020822,2]
[420178391,1775751039185,-481.0,0.00020822,2]
[420178392,1775751039195,-481.0,0.00020822,2]
[420178393,1775751039206,-481.0,0.00020822,2]
[420178394,1775751039216,-481.0,0.00020822,2]
[420178395,1775751039227,-481.0,0.00020822,2]
[420178396,1775751039236,-481.0,0.00020822,2]
[420178397,1775751039247,-481.0,0.00020822,2]
[420178398,1775751039256,-481.0,0.00020822,2]
[420178399,1775751039267,-481.0,0.00020822,2]
[420178400,1775751039278,-1442.0,0.00020822,2]
[420178401,1775751039287,-1442.0,0.00020822,2]
[420178402,1775751039297,-1442.0,0.00020822,2]
[420178403,1775751039308,-481.0,0.00020822,2]
[420178404,1775751039318,-1442.0,0.00020822,2]
[420178405,1775751039327,-1442.0,0.00020822,2]
[420178406,1775751039338,-1442.0,0.00020822,2]
[420178407,1775751039347,-1442.0,0.00020822,2]
[420178408,1775751039356,-1442.0,0.00020822,2]
[420178409,1775751039365,-1442.0,0.00020822,2]
[420178410,1775751039375,-1442.0,0.00020822,2]
[420178411,1775751039384,-481.0,0.00020822,2]
[420178412,1775751039393,-1442.0,0.00020822,2]
[420178413,1775751039403,-1442.0,0.00020822,2]
[420178414,1775751039412,-481.0,0.00020822,2]
[420178415,1775751039422,-1442.0,0.00020822,2]
[420178416,1775751039431,-1442.0,0.00020822,2]
[420178417,1775751039441,-500.46687558,0.00020822,2]
[420178418,1775751039451,-1442.0,0.00020822,2]
[420178419,1775751039461,-3384.42637904,0.00020996,2]
[420178420,1775751039470,-936.8067689,0.00021022,2]
[420178421,1775751039480,-394.9299113,0.00021022,2]
[420178422,1775751039488,-3384.42637903,0.0002104,2]
[420178423,1775751039499,-241.29122141,0.00021084,2]
[420178424,1775751039508,-238.705284,0.00021084,2]
[420178425,1775751039519,-500.0,0.00021084,2]
[420178426,1775751039529,-500.0,0.00021084,2]
[420178427,1775751039538,-500.0,0.00021084,2]
[420178428,1775751039547,-500.0,0.00021084,2]
[420178429,1775751039557,-500.0,0.00021084,2]
[420178430,1775751039567,-500.0,0.00021084,2]
[420178431,1775751039576,-500.0,0.00021084,2]
[420178432,1775751039586,-500.0,0.00021084,2]
[420178433,1775751039596,-500.0,0.00021084,2]
[420178434,1775751039606,-3384.42637903,0.00021085,2]
[420178435,1775751039615,-35619.98,0.00021085,10]
[420178436,1775751039624,-200.0,0.00021095,2]
[420178437,1775751039634,-1458.0,0.00021096,2]
[420178438,1775751039644,-1458.0,0.00021096,2]
[420178439,1775751039653,-500.0,0.00021096,2]
[420178440,1775751039663,-1458.0,0.00021096,2]
[420178441,1775751039672,-500.0,0.00021096,2]
[420178442,1775751039682,-1458.0,0.00021096,2]
[420178443,1775751039691,-500.0,0.00021096,2]
[420178444,1775751039701,-500.0,0.00021096,2]
[420178445,1775751039711,-1458.0,0.00021096,2]
[420178446,1775751039721,-500.0,0.00021096,2]
[420178447,1775751039730,-500.0,0.00021096,2]
[420178448,1775751039740,-1458.0,0.00021096,2]
[420178449,1775751039749,-500.0,0.00021096,2]
[420178450,1775751039758,-500.0,0.00021096,2]
[420178451,1775751039768,-1458.0,0.00021096,2]
[420178452,1775751039777,-500.0,0.00021096,2]
[420178453,1775751039786,-500.0,0.00021096,2]
[420178454,1775751039796,-1458.0,0.00021096,2]
[420178455,1775751039806,-374.12858082,0.00021096,2]
[420178456,1775751039815,-216.55347614,0.00021096,2]
[420178457,1775751039825,-1458.0,0.00021096,2]
[420178458,1775751039835,-1458.0,0.00021096,2]
[420178459,1775751039845,-1458.0,0.00021096,2]
[420178461,1775751039855,-1458.0,0.00021096,2]
[420178463,1775751039864,-1458.0,0.00021096,2]
[420178465,1775751039875,-1458.0,0.00021096,2]
[420178466,1775751039885,-1458.0,0.00021096,2]
[420178467,1775751039894,-500.0,0.00021096,2]
[420178468,1775751039903,-500.0,0.00021096,2]
[420178469,1775751039913,-571.49573038,0.00021096,2]
[420178470,1775751039922,-500.0,0.00021096,2]
[420178471,1775751039932,-500.0,0.00021096,2]
[420178472,1775751039942,-1458.0,0.00021096,2]
[420178473,1775751039951,-500.0,0.00021096,2]
[420178476,1775751039960,-151.5,0.00021096,2]
[420178478,1775751039969,-500.0,0.00021096,2]
[420178479,1775751039979,-151.5,0.00021096,2]
[420178480,1775751039988,-500.0,0.00021096,2]
[420178481,1775751039998,-197.45079767,0.00021096,2]
[420178482,1775751040008,-500.0,0.00021096,2]
[420178483,1775751040017,-489.71992761,0.00021096,2]
[420178484,1775751040028,-1458.0,0.00021096,2]
[420178485,1775751040037,-473.0,0.00021096,2]
[420178486,1775751040046,-473.0,0.00021096,2]
[420178487,1775751040056,-1458.0,0.00021096,2]
[420178488,1775751040065,-473.0,0.00021096,2]
[420178489,1775751040075,-473.0,0.00021096,2]
[420178490,1775751040085,-473.0,0.00021096,2]
[420178491,1775751040096,-473.0,0.00021096,2]
[420178492,1775751040106,-473.0,0.00021096,2]
[420178493,1775751040115,-473.0,0.00021096,2]
[420178494,1775751040124,-473.0,0.00021096,2]
[420178495,1775751040134,-473.0,0.00021096,2]
[420178496,1775751040144,-473.0,0.00021096,2]
[420178497,1775751040153,-1744.0,0.00021096,2]
[420178498,1775751040163,-473.0,0.00021096,2]
[420178499,1775751040173,-1744.0,0.00021096,2]
[420178500,1775751040182,-1458.0,0.00021096,2]
[420178501,1775751040192,-473.0,0.00021096,2]
[420178502,1775751040202,-1744.0,0.00021096,2]
[420178503,1775751040211,-473.0,0.00021096,2]
[420178504,1775751040221,-1744.0,0.00021096,2]
[420178505,1775751040230,-1744.0,0.00021096,2]
[420178506,1775751040240,-473.0,0.00021096,2]
[420178507,1775751040249,-1744.0,0.00021096,2]
[420178508,1775751040259,-473.0,0.00021096,2]
[420178509,1775751040268,-1744.0,0.00021096,2]
[420178510,1775751040277,-1744.0,0.00021096,2]
[420178511,1775751040287,-1744.0,0.00021096,2]
[420178512,1775751040296,-473.0,0.00021096,2]
[420178513,1775751040306,-1744.0,0.00021096,2]
[420178514,1775751040318,-1744.0,0.00021096,2]
[420178515,1775751040329,-1744.0,0.00021096,2]
[420178516,1775751040340,-1744.0,0.00021096,2]
[420178517,1775751040355,-1744.0,0.00021096,2]
[420178518,1775751040369,-473.0,0.00021096,2]
[420178519,1775751040378,-1458.0,0.00021096,2]
[420178520,1775751040388,-1744.0,0.00021096,2]
[420178521,1775751040398,-473.0,0.00021096,2]
[420178522,1775751040407,-1744.0,0.00021096,2]
[420178523,1775751040418,-1744.0,0.00021096,2]
[420178524,1775751040427,-1458.0,0.00021096,2]
[420178525,1775751040438,-473.0,0.00021096,2]
[420178526,1775751040447,-950.0,0.00021096,2]
[420178527,1775751040457,-950.0,0.00021096,2]
[420178528,1775751040466,-950.0,0.00021096,2]
[420178529,1775751040476,-950.0,0.00021096,2]
[420178530,1775751040486,-950.0,0.00021096,2]
[420178531,1775751040495,-1744.0,0.00021096,2]
[420178532,1775751040505,-950.0,0.00021096,2]
[420178533,1775751040514,-950.0,0.00021096,2]
[420178534,1775751040524,-950.0,0.00021096,2]
[420178535,1775751040534,-473.0,0.00021096,2]
[420178536,1775751040544,-950.0,0.00021096,2]
[420178537,1775751040554,-950.0,0.00021096,2]
[420178538,1775751040563,-950.0,0.00021096,2]
[420178539,1775751040572,-950.0,0.00021096,2]
[420178540,1775751040582,-950.0,0.00021096,2]
[420178541,1775751040592,-1458.0,0.00021096,2]
[420178542,1775751040604,-950.0,0.00021096,2]
[420178543,1775751040614,-1744.0,0.00021096,2]
[420178544,1775751040624,-950.0,0.00021096,2]
[420178545,1775751040635,-473.0,0.00021096,2]
[420178546,1775751040645,-950.0,0.00021096,2]
[420178547,1775751040654,-1744.0,0.00021096,2]
[420178548,1775751040664,-950.0,0.00021096,2]
[420178549,1775751040675,-1458.0,0.00021096,2]
[420178550,1775751040684,-473.0,0.00021096,2]
[420178551,1775751040694,-950.0,0.00021096,2]
[420178552,1775751040703,-1744.0,0.00021096,2]
[420178553,1775751040713,-151.7521585,0.00021096,2]
[420178554,1775751040722,-950.0,0.00021096,2]
[420178555,1775751040731,-500.0,0.00021096,2]
[420178556,1775751040740,-491.20300329,0.00021096,2]
[420178557,1775751040750,-1466.39036441,0.00021096,2]
[420178558,1775751040760,-500.0,0.00021096,2]
[420178559,1775751040769,-500.0,0.00021096,2]
[420178560,1775751040778,-500.0,0.00021096,2]
[420178561,1775751040788,-500.0,0.00021096,2]
[420178562,1775751040797,-500.0,0.00021096,2]
[420178563,1775751040807,-500.0,0.00021096,2]
[420178564,1775751040816,-500.0,0.00021096,2]
[420178565,1775751040826,-1744.0,0.00021096,2]
[420178566,1775751040835,-596.32573117,0.00021096,2]
[420178567,1775751040847,-950.0,0.00021096,2]
[420178568,1775751040856,-950.0,0.00021096,2]
[420178569,1775751040866,-1744.0,0.00021096,2]
[420178570,1775751040875,-950.0,0.00021096,2]
[420178571,1775751040884,-1762.78878023,0.00021096,2]
[420178572,1775751040894,-950.0,0.00021096,2]
[420178573,1775751040904,-951.41154658,0.00021096,2]
[420178574,1775751040914,-204.39923233,0.00021096,2]
[420178575,1775751040923,-151.5,0.00021096,2]
[420178576,1775751040932,-151.5,0.00021096,2]
[420178577,1775751040942,-151.5,0.00021096,2]
[420178578,1775751040951,-151.5,0.00021096,2]
[420178579,1775751040960,-151.5,0.00021096,2]
[420178580,1775751040970,-224.13081357,0.00021096,2]
[420178581,1775751040979,-188.26012684,0.00021096,2]
[420178582,1775751040989,-151.5,0.00021096,2]
[420178583,1775751040998,-500.0,0.00021096,2]
[420178584,1775751041008,-253.17900377,0.00021096,2]
[420178585,1775751041018,-500.0,0.00021096,2]
[420178586,1775751041027,-500.0,0.00021096,2]
[420178587,1775751041037,-500.0,0.00021096,2]
[420178588,1775751041046,-571.23543212,0.00021096,2]
[420178589,1775751041055,-500.0,0.00021096,2]
[420178590,1775751041064,-151.5,0.00021096,2]
[420178591,1775751041074,-612.86009092,0.00021096,2]
[420178592,1775751041083,-3384.42637903,0.00021129,2]
[420178593,1775751041092,-2230.315306,0.00021135,2]
[420178594,1775751041102,-3384.42637903,0.00021173,2]
[420178595,1775751041111,-1000.0,0.000212,2]
[420178596,1775751041120,-151.0,0.00021203,2]
[420178597,1775751041129,-200.0,0.00021269,2]
[420178598,1775751041138,-3553.35,0.0002127,2]
[420178599,1775751041148,-1171051.8840017,0.0002127,2]
[420178600,1775751041158,-244.58424846,0.00021273,2]
[420178601,1775751041167,-500.0,0.00021273,2]
[420178602,1775751041176,-500.0,0.00021273,2]
[420178603,1775751041186,-500.0,0.00021273,2]
[420178604,1775751041195,-500.0,0.00021273,2]
[420178605,1775751041205,-517.19822348,0.00021273,2]
[420178606,1775751041215,-500.0,0.00021273,2]
[420178607,1775751041224,-1243.0,0.0002128,2]
[420178608,1775751041233,-151.5,0.0002137,2]
[420178609,1775751041243,-151.5,0.0002137,2]
[420178610,1775751041252,-249.95324647,0.0002137,2]
[420178611,1775751041262,-296.07332457,0.0002137,2]
[420178612,1775751041271,-187.27285808,0.0002137,2]
[420178613,1775751041281,-500.0,0.0002137,2]
[420178614,1775751041290,-500.0,0.0002137,2]
[420178615,1775751041299,-500.0,0.0002137,2]
[420178616,1775751041309,-500.0,0.0002137,2]
[420178617,1775751041318,-500.0,0.0002137,2]
[420178618,1775751041328,-500.0,0.0002137,2]
[420178619,1775751041337,-603.74821146,0.0002137,2]
[420178620,1775751041347,-500.0,0.0002137,2]
[420178621,1775751041356,-500.0,0.0002137,2]
[420178622,1775751041365,-500.0,0.0002137,2]
[420178623,1775751041375,-500.0,0.0002137,2]
[420178624,1775751041384,-500.0,0.0002137,2]
[420178625,1775751041394,-560.90341106,0.0002137,2]
[420178626,1775751041403,-500.0,0.0002137,2]
[420178627,1775751041413,-500.0,0.0002137,2]
[420178628,1775751041422,-500.0,0.0002137,2]
[420178629,1775751041431,-500.0,0.0002137,2]
[420178630,1775751041440,-500.0,0.0002137,2]
[420178631,1775751041449,-500.0,0.0002137,2]
[420178632,1775751041459,-167.28339867,0.0002137,2]
[420178633,1775751041469,-500.0,0.0002137,2]
[420178634,1775751041478,-500.0,0.0002137,2]
[420178635,1775751041487,-500.0,0.0002137,2]
[420178636,1775751041496,-500.0,0.0002137,2]
[420178637,1775751041505,-234.75770086,0.0002137,2]
[420178638,1775751041515,-500.0,0.0002137,2]
[420178639,1775751041524,-500.0,0.0002137,2]
[420178640,1775751041533,-151.5,0.0002137,2]
[420178641,1775751041543,-500.0,0.0002137,2]
[420178642,1775751041552,-249.92947924,0.0002137,2]
[420178643,1775751041562,-500.0,0.0002137,2]
[420178644,1775751041572,-500.0,0.0002137,2]
[420178645,1775751041582,-500.0,0.0002137,2]
[420178646,1775751041591,-151.5,0.0002137,2]
[420178647,1775751041601,-500.0,0.0002137,2]
[420178648,1775751041611,-151.5,0.0002137,2]
[420178649,1775751041620,-500.0,0.0002137,2]
[420178650,1775751041630,-244.27825035,0.0002137,2]
[420178651,1775751041640,-151.5,0.0002137,2]
[420178652,1775751041649,-500.0,0.0002137,2]
[420178653,1775751041660,-244.03676491,0.0002137,2]
[420178654,1775751041669,-500.0,0.0002137,2]
[420178655,1775751041679,-363.24002618,0.0002137,2]
[420178656,1775751041689,-500.0,0.0002137,2]
[420178657,1775751041698,-500.0,0.0002137,2]
[420178658,1775751041708,-500.0,0.0002137,2]
[420178659,1775751041718,-500.0,0.0002137,2]
[420178660,1775751041728,-314.29817775,0.0002137,2]
[420178661,1775751041737,-500.0,0.0002137,2]
[420178662,1775751041747,-500.0,0.0002137,2]
[420178663,1775751041756,-500.0,0.0002137,2]
[420178664,1775751041765,-175.13162194,0.0002137,2]
[420178665,1775751041775,-500.0,0.0002137,2]
[420178666,1775751041785,-151.5,0.0002137,2]
[420178667,1775751041794,-500.0,0.0002137,2]
[420178668,1775751041804,-192.39160088,0.0002137,2]
[420178669,1775751041813,-500.0,0.0002137,2]
[420178670,1775751041823,-500.0,0.0002137,2]
[420178671,1775751041832,-512.10269178,0.0002137,2]
[420178672,1775751041842,-151.0,0.0002137,2]
[420178673,1775751041850,-151.0,0.0002137,2]
[420178674,1775751041860,-151.0,0.0002137,2]
[420178675,1775751041869,-151.0,0.0002137,2]
[420178676,1775751041879,-151.0,0.0002137,2]
[420178677,1775751041888,-280.576009,0.0002137,2]
[420178678,1775751041898,-387.25026356,0.00021544,2]
[420178679,1775751041908,-368.56298487,0.00021544,2]
[420178680,1775751041917,-607.00808843,0.00021544,2]
[420178681,1775751041928,-317.83252676,0.00021544,2]
[420178682,1775751041938,-1549.00105426,0.00021544,2]
[420178683,1775751041948,-300.74273047,0.00021544,2]
[420178684,1775751041958,-184.0,0.00021573,2]
[420178685,1775751041968,-162.09897232,0.00021683,2]
[420178686,1775751041978,-250.0,0.00021699,7]
[420178687,1775751041988,-1000.0,0.000217,2]
[420178688,1775751041997,-600.0,0.00021796,10]
[420178689,1775751042007,-500.0,0.00021799,2]
[420178690,1775751042017,-1000.0,0.00021821,2]
[420178691,1775751042026,-1243.0,0.00021828,2]
[420178692,1775751042036,-500.0,0.00021877,2]
[420178693,1775751042047,-155.0,0.00021917,2]
[420178694,1775751042056,-250.0,0.00021917,2]
[420178695,1775751042067,-151.0,0.00021918,2]
[420178696,1775751042078,-151.0,0.00021918,2]
[420178697,1775751042087,-151.0,0.00021918,2]
[420178698,1775751042097,-241.272025,0.00021918,2]
[420178699,1775751042107,-151.0,0.00021918,2]
[420178700,1775751042117,-151.0,0.00021918,2]
[420178701,1775751042126,-153.369738,0.00021918,2]
[420178702,1775751042136,-359.53158,0.00021918,2]
[420178703,1775751042145,-359.53158,0.00021918,2]
[420178704,1775751042155,-359.53158,0.00021918,2]
[420178705,1775751042165,-359.53158,0.00021918,2]
[420178706,1775751042174,-359.53158,0.00021918,2]
[420178707,1775751042184,-359.53158,0.00021918,2]
[420178708,1775751042193,-359.53158,0.00021918,2]
[420178709,1775751042203,-359.53158,0.00021918,2]
[420178710,1775751042213,-359.53158,0.00021918,2]
[420178711,1775751042222,-359.53158,0.00021918,2]
[420178712,1775751042232,-359.53158,0.00021918,2]
[420178713,1775751042241,-359.53158,0.00021918,2]
[420178714,1775751042252,-359.53158,0.00021918,2]
[420178715,1775751042261,-359.53158,0.00021918,2]
[420178716,1775751042271,-359.53158,0.00021918,2]
[420178717,1775751042281,-359.53158,0.00021918,2]
[420178718,1775751042291,-359.53158,0.00021918,2]
[420178719,1775751042301,-359.53158,0.00021918,2]
[420178720,1775751042311,-359.53158,0.00021918,2]
[420178721,1775751042321,-359.531577,0.00021918,2]
[420178722,1775751042331,-151.0,0.00021918,2]
[420178723,1775751042341,-3344.826903,0.00021918,2]
[420178724,1775751042351,-3344.826903,0.00021918,2]
[420178725,1775751042360,-3344.826903,0.00021918,2]
[420178726,1775751042370,-3344.826903,0.00021918,2]
[420178727,1775751042380,-3344.826903,0.00021918,2]
[420178728,1775751042390,-3344.826903,0.00021918,2]
[420178729,1775751042399,-3344.826903,0.00021918,2]
[420178730,1775751042409,-3344.826903,0.00021918,2]
[420178731,1775751042419,-3344.826903,0.00021918,2]
[420178732,1775751042429,-3344.826903,0.00021918,2]
[420178734,1775751042439,-3344.826903,0.00021918,2]
[420178736,1775751042448,-3344.826903,0.00021918,2]
[420178737,1775751042457,-3344.826903,0.00021918,2]
[420178738,1775751042467,-3344.826903,0.00021918,2]
[420178739,1775751042477,-3344.826903,0.00021918,2]
[420178741,1775751042487,-3344.826903,0.00021918,2]
[420178742,1775751042496,-3344.826903,0.00021918,2]
[420178744,1775751042506,-3344.826903,0.00021918,2]
[420178745,1775751042516,-3344.826903,0.00021918,2]
[420178746,1775751042526,-181.229656,0.00021918,2]
[420178747,1775751042536,-3344.826902,0.00021918,2]
[420178748,1775751042546,-181.229656,0.00021918,2]
[420178749,1775751042555,-181.229656,0.00021918,2]
[420178750,1775751042565,-181.229656,0.00021918,2]
[420178751,1775751042575,-181.229656,0.00021918,2]
[420178752,1775751042585,-181.229656,0.00021918,2]
[420178753,1775751042595,-181.229656,0.00021918,2]
[420178754,1775751042605,-181.229656,0.00021918,2]
[420178755,1775751042614,-181.229656,0.00021918,2]
[420178756,1775751042624,-181.229656,0.00021918,2]
[420178757,1775751042634,-181.229656,0.00021918,2]
[420178758,1775751042643,-181.229656,0.00021918,2]
[420178759,1775751042653,-181.229656,0.00021918,2]
[420178760,1775751042663,-181.229656,0.00021918,2]
[420178761,1775751042673,-181.229656,0.00021918,2]
[420178762,1775751042683,-181.229656,0.00021918,2]
[420178763,1775751042692,-181.229656,0.00021918,2]
[420178765,1775751042702,-181.229656,0.00021918,2]
[420178767,1775751042712,-181.229656,0.00021918,2]
[420178769,1775751042722,-181.229656,0.00021918,2]
[420178770,1775751042731,-151.0,0.00021918,2]
[420178771,1775751042740,-255.530001,0.00021918,2]
[420178772,1775751042750,-4024.291989,0.00021918,2]
[420178773,1775751042760,-3087.90959446,0.00021918,2]
[420178776,1775751042778,-936.38239454,0.00021918,2]
[420178777,1775751042787,-2021.56748143,0.00021918,2]
[420178778,1775751042800,-2002.72450757,0.00021918,2]
[420178779,1775751042810,-4024.291989,0.00021918,2]
[420178780,1775751042820,-4024.291989,0.00021918,2]
[420178781,1775751042830,-4024.291989,0.00021918,2]
[420178782,1775751042840,-4024.291989,0.00021918,2]
[420178783,1775751042852,-4024.291989,0.00021918,2]
[420178784,1775751042862,-4024.291989,0.00021918,2]
[420178785,1775751042872,-4024.291989,0.00021918,2]
[420178786,1775751042881,-1574.66109001,0.00021918,2]
[420178787,1775751043072,-646.31172088,0.00020822,2]
[420178840,1775751043786,-500.0,0.00020769,2]
[420178841,1775751043797,-500.0,0.00020769,2]
[420178842,1775751043807,-500.0,0.00020769,2]
[420178843,1775751043817,-500.0,0.00020769,2]
[420178844,1775751043828,-500.0,0.00020769,2]
[420178845,1775751043838,-111.9319523,0.00020769,2]
[420178846,1775751043856,-388.0680477,0.00020769,2]